fUST/lending_fUST_20250921
["ID","MTS","AMOUNT","RATE_DAILY","PERIOD"]
[386637232,1758447052691,-286.27275661,0.0002,2]
[386637234,1758447052701,-480.0,0.0002,2]
[386637236,1758447052710,-480.0,0.0002,2]
[386637238,1758447052720,-480.0,0.0002,2]
[386637240,1758447052729,-480.0,0.0002,2]
[386637242,1758447052738,-480.0,0.0002,2]
[386637244,1758447052748,-480.0,0.0002,2]
[386637246,1758447052757,-480.0,0.0002,2]
[386637248,1758447052766,-480.0,0.0002,2]
[386637250,1758447052775,-480.0,0.0002,2]
[386637252,1758447052785,-480.0,0.0002,2]
[386637254,1758447052794,-1536.62,0.0002,2]
[386637256,1758447052804,-485.38448487,0.0002,2]
[386637258,1758447052813,-480.0,0.0002,2]
[386637260,1758447052822,-480.0,0.0002,2]
[386637262,1758447052832,-1727.94,0.0002,2]
[386637264,1758447052841,-4000.0,0.0002,4]
[386637266,1758447052850,-506.20285795,0.0002,2]
[386637268,1758447052859,-480.0,0.0002,2]
[386637270,1758447052869,-480.0,0.0002,2]
[386637272,1758447052878,-480.0,0.0002,2]
[386637274,1758447052887,-160.0,0.0002,2]
[386637276,1758447052896,-480.0,0.0002,2]
[386637278,1758447052906,-850.04,0.0002,2]
[386637280,1758447052915,-480.0,0.0002,2]
[386637282,1758447052924,-480.0,0.0002,2]
[386637284,1758447052934,-480.0,0.0002,2]
[386637286,1758447052943,-480.0,0.0002,2]
[386637288,1758447052953,-480.0,0.0002,2]
[386637290,1758447052962,-480.0,0.0002,2]
[386637292,1758447052971,-487.52,0.0002,2]
[386637294,1758447052980,-485.86899523,0.0002,2]
[386637296,1758447052990,-379.56872956,0.00020021,2]
[386637297,1758447053002,-1000.0,0.00020021,2]
[386637300,1758447053011,-808.0146575,0.00020021,2]
[386637302,1758447053020,-501.50504097,0.00020021,2]
[386637304,1758447053030,-174.59269388,0.00020021,2]
[386637306,1758447053040,-506.04110339,0.00020021,2]
[386637308,1758447053049,-1000.0,0.00020021,2]
[386637310,1758447053059,-1000.0,0.00020021,2]
[386637311,1758447053068,-1087.420753,0.00020021,2]
[386637313,1758447053081,-1000.0,0.00020021,2]
[386637316,1758447053092,-500.0,0.00020021,2]
[386637318,1758447053102,-1000.0,0.00020021,2]
[386637328,1758447053189,-218.50890747,0.00020021,2]
[386637330,1758447053200,-502.54245109,0.00020021,2]
[386637332,1758447053210,-1000.0,0.00020021,2]
[386637334,1758447053220,-1000.0,0.00020021,2]
[386637337,1758447053231,-1000.0,0.00020021,2]
[386637339,1758447053241,-500.0,0.00020021,2]
[386637341,1758447053250,-1000.0,0.00020021,2]
[386637343,1758447053259,-1000.0,0.00020021,2]
[386637344,1758447053269,-501.36366912,0.00020021,2]
[386637347,1758447053278,-500.53318302,0.00020021,2]
[386637349,1758447053288,-5000.0,0.00020072,2]
[386637351,1758447053298,-431.62687345,0.00020085,2]
[386637353,1758447053307,-740.86151903,0.00020096,2]
[386637355,1758447053317,-480.0,0.00020103,2]
[386637357,1758447053326,-168.4007875,0.00020103,2]
[386637359,1758447053335,-609.15,0.00020103,2]
[386637361,1758447053344,-480.0,0.00020103,2]
[386637363,1758447053353,-480.0,0.00020146,2]
[386637365,1758447053363,-815.5,0.00020146,2]
[386637367,1758447053372,-480.0,0.00020146,2]
[386637369,1758447053381,-227.0,0.00020179,2]
[386637371,1758447053391,-18261.27688406,0.0002019,2]
[386637373,1758447053400,-168.0,0.00020248,2]
[386637375,1758447053409,-1500.0,0.00020268,2]
[386637377,1758447053419,-506.38224766,0.00020268,2]
[386637379,1758447053429,-1500.0,0.00020268,2]
[386637381,1758447053438,-1500.0,0.00020268,2]
[386637383,1758447053448,-1500.0,0.00020268,2]
[386637385,1758447053457,-511.0021489,0.00020268,2]
[386637387,1758447053466,-1500.0,0.00020268,2]
[386637389,1758447053475,-1500.0,0.00020268,2]
[386637391,1758447053484,-480.0,0.00020273,2]
[386637393,1758447053494,-480.0,0.00020273,2]
[386637395,1758447053503,-480.0,0.00020273,2]
[386637397,1758447053512,-480.0,0.00020273,2]
[386637399,1758447053521,-565.54716332,0.00020273,2]
[386637401,1758447053531,-217.57369551,0.00020273,2]
[386637403,1758447053540,-480.0,0.00020273,2]
[386637405,1758447053549,-480.0,0.00020273,2]
[386637407,1758447053559,-349.32076343,0.00020273,2]
[386637409,1758447053568,-480.0,0.00020273,2]
[386637411,1758447053577,-480.0,0.00020273,2]
[386637413,1758447053588,-480.0,0.00020273,2]
[386637415,1758447053597,-480.0,0.00020273,2]
[386637417,1758447053606,-480.0,0.00020273,2]
[386637419,1758447053616,-480.0,0.00020273,2]
[386637421,1758447053625,-480.0,0.00020273,2]
[386637423,1758447053634,-480.0,0.00020273,2]
[386637425,1758447053643,-480.0,0.00020273,2]
[386637427,1758447053652,-480.0,0.00020273,2]
[386637429,1758447053662,-480.0,0.00020273,2]
[386637431,1758447053672,-480.0,0.00020273,2]
[386637433,1758447053683,-480.0,0.00020273,2]
[386637435,1758447053692,-480.0,0.00020273,2]
[386637437,1758447053701,-233.58319196,0.00020273,2]
[386637439,1758447053711,-480.0,0.00020273,2]
[386637441,1758447053720,-480.0,0.00020273,2]
[386637443,1758447053729,-480.0,0.00020273,2]
[386637445,1758447053739,-480.0,0.00020273,2]
[386637447,1758447053748,-530.48253614,0.00020273,2]
[386637449,1758447053758,-480.0,0.00020273,2]
[386637451,1758447053767,-480.0,0.00020273,2]
[386637453,1758447053776,-480.0,0.00020273,2]
[386637455,1758447053785,-480.0,0.00020273,2]
[386637457,1758447053794,-480.0,0.00020273,2]
[386637459,1758447053804,-480.0,0.00020273,2]
[386637461,1758447053814,-480.0,0.00020273,2]
[386637463,1758447053823,-480.0,0.00020273,2]
[386637465,1758447053832,-480.0,0.00020273,2]
[386637467,1758447053841,-480.0,0.00020273,2]
[386637469,1758447053851,-480.0,0.00020273,2]
[386637471,1758447053860,-1155.69,0.00020273,2]
[386637473,1758447053869,-10857.65,0.00020273,2]
[386637475,1758447053879,-480.0,0.00020273,2]
[386637477,1758447053888,-480.0,0.00020273,2]
[386637479,1758447053897,-480.0,0.00020273,2]
[386637481,1758447053906,-1690.43,0.00020273,2]
[386637483,1758447053916,-492.19459068,0.00020273,2]
[386637485,1758447053925,-528.32595358,0.00020273,2]
[386637487,1758447053934,-480.0,0.00020273,2]
[386637489,1758447053945,-678.23,0.00020273,2]
[386637491,1758447053955,-480.0,0.00020273,2]
[386637493,1758447053964,-480.0,0.00020273,2]
[386637495,1758447053974,-480.0,0.00020273,2]
[386637497,1758447053983,-480.0,0.00020273,2]
[386637499,1758447053993,-1659.82,0.00020273,2]
[386637501,1758447054007,-970.19,0.00020273,2]
[386637503,1758447054016,-480.0,0.00020273,2]
[386637505,1758447054025,-480.0,0.00020273,2]
[386637507,1758447054035,-557.14,0.00020273,2]
[386637509,1758447054044,-496.49513914,0.00020273,2]
[386637511,1758447054053,-480.0,0.00020273,2]
[386637513,1758447054063,-480.0,0.00020273,2]
[386637515,1758447054073,-480.0,0.00020273,2]
[386637517,1758447054082,-480.0,0.00020273,2]
[386637519,1758447054092,-480.0,0.00020273,2]
[386637521,1758447054102,-480.0,0.00020273,2]
[386637523,1758447054111,-508.62657151,0.00020273,2]
[386637525,1758447054120,-480.0,0.00020273,2]
[386637527,1758447054130,-480.0,0.00020273,2]
[386637529,1758447054139,-480.0,0.00020273,2]
[386637531,1758447054150,-480.0,0.00020273,2]
[386637533,1758447054159,-480.0,0.00020273,2]
[386637535,1758447054169,-480.0,0.00020273,2]
[386637537,1758447054178,-480.0,0.00020273,2]
[386637539,1758447054189,-492.44740963,0.00020273,2]
[386637541,1758447054199,-845.37,0.00020273,2]
[386637543,1758447054209,-847.21,0.00020273,2]
[386637545,1758447054219,-3912.14,0.00020273,2]
[386637547,1758447054229,-480.0,0.00020273,2]
[386637549,1758447054239,-480.0,0.00020273,2]
[386637551,1758447054248,-480.0,0.00020273,2]
[386637553,1758447054258,-730.9,0.00020273,2]
[386637555,1758447054268,-480.0,0.00020273,2]
[386637557,1758447054277,-480.0,0.00020273,2]
[386637559,1758447054287,-480.0,0.00020273,2]
[386637561,1758447054296,-675.21,0.00020273,2]
[386637563,1758447054306,-480.0,0.00020273,2]
[386637565,1758447054315,-480.0,0.00020273,2]
[386637567,1758447054324,-480.0,0.00020273,2]
[386637569,1758447054334,-480.0,0.00020273,2]
[386637572,1758447054343,-480.0,0.00020273,2]
[386637574,1758447054353,-480.0,0.00020273,2]
[386637576,1758447054363,-480.0,0.00020273,2]
[386637578,1758447054372,-480.0,0.00020273,2]
[386637580,1758447054383,-480.0,0.00020273,2]
[386637582,1758447054393,-575.11835846,0.00020273,2]
[386637584,1758447054403,-1536.62,0.00020273,2]
[386637586,1758447054412,-480.0,0.00020273,2]
[386637588,1758447054422,-1727.94,0.00020273,2]
[386637590,1758447054432,-480.0,0.00020273,2]
[386637592,1758447054443,-480.0,0.00020273,2]
[386637594,1758447054454,-480.0,0.00020273,2]
[386637596,1758447054463,-495.84396361,0.00020273,2]
[386637598,1758447054473,-850.04,0.00020273,2]
[386637600,1758447054483,-480.0,0.00020273,2]
[386637602,1758447054493,-480.0,0.00020273,2]
[386637604,1758447054502,-480.0,0.00020273,2]
[386637606,1758447054511,-480.0,0.00020273,2]
[386637608,1758447054522,-346.53,0.00020273,2]
[386637610,1758447054532,-487.52,0.00020273,2]
[386637612,1758447054542,-500.0,0.00020274,2]
[386637614,1758447054551,-500.0,0.00020274,2]
[386637616,1758447054561,-500.0,0.00020277,2]
[386637618,1758447054570,-500.0,0.00020277,2]
[386637620,1758447054580,-500.0,0.00020277,2]
[386637622,1758447054590,-500.67676706,0.00020277,2]
[386637624,1758447054599,-500.0,0.00020277,2]
[386637626,1758447054609,-500.0,0.00020277,2]
[386637628,1758447054619,-500.0,0.00020277,2]
[386637630,1758447054628,-500.0,0.00020277,2]
[386637632,1758447054638,-500.0,0.00020277,2]
[386637634,1758447054647,-500.0,0.00020277,2]
[386637636,1758447054657,-500.0,0.00020277,2]
[386637638,1758447054666,-168.0,0.00020278,2]
[386637640,1758447054676,-1000.0,0.000203,2]
[386637644,1758447054687,-500.0,0.00020313,2]
[386637645,1758447054767,-500.0,0.00020313,2]
[386637646,1758447054777,-500.0,0.00020313,2]
[386637647,1758447054786,-500.0,0.00020313,2]
[386637648,1758447054796,-168.0,0.00020317,2]
[386637649,1758447054808,-7682.14,0.0002032,2]
[386637650,1758447054817,-227.0,0.0002033,2]
[386637652,1758447054827,-974.8,0.00020333,3]
[386637653,1758447054837,-487.4,0.00020333,3]
[386637655,1758447054847,-480.0,0.00020377,2]
[386637657,1758447054857,-609.15,0.00020377,2]
[386637659,1758447054866,-480.0,0.00020377,2]
[386637661,1758447054876,-480.0,0.0002042,2]
[386637663,1758447054885,-815.5,0.0002042,2]
[386637665,1758447054895,-489.54397273,0.0002042,2]
[386637667,1758447054904,-227.0,0.00020452,2]
[386637669,1758447054914,-227.0,0.00020468,2]
[386637671,1758447054923,-345.08,0.00020538,3]
[386637673,1758447054933,-1305.82,0.00020538,3]
[386637675,1758447054942,-652.92,0.00020538,3]
[386637677,1758447054951,-652.92,0.00020538,3]
[386637679,1758447054961,-500.0,0.0002054,2]
[386637681,1758447054970,-500.0,0.0002054,2]
[386637683,1758447054980,-480.0,0.00020547,2]
[386637685,1758447054990,-480.0,0.00020547,2]
[386637687,1758447055002,-480.0,0.00020547,2]
[386637689,1758447055013,-496.89196208,0.00020547,2]
[386637691,1758447055022,-480.0,0.00020547,2]
[386637693,1758447055032,-480.0,0.00020547,2]
[386637694,1758447055041,-403.80446147,0.00020547,2]
[386637696,1758447055051,-480.0,0.00020547,2]
[386637698,1758447055061,-480.0,0.00020547,2]
[386637700,1758447055070,-480.0,0.00020547,2]
[386637702,1758447055081,-367.33386851,0.00020547,2]
[386637704,1758447055091,-480.0,0.00020547,2]
[386637706,1758447055100,-480.0,0.00020547,2]
[386637708,1758447055110,-480.0,0.00020547,2]
[386637710,1758447055120,-156.60790137,0.00020547,2]
[386637713,1758447055130,-480.0,0.00020547,2]
[386637715,1758447055139,-480.0,0.00020547,2]
[386637717,1758447055150,-480.0,0.00020547,2]
[386637719,1758447055159,-480.0,0.00020547,2]
[386637720,1758447055169,-480.0,0.00020547,2]
[386637723,1758447055178,-480.0,0.00020547,2]
[386637724,1758447055188,-480.0,0.00020547,2]
[386637726,1758447055197,-480.0,0.00020547,2]
[386637728,1758447055206,-480.0,0.00020547,2]
[386637730,1758447055216,-480.0,0.00020547,2]
[386637732,1758447055226,-480.0,0.00020547,2]
[386637734,1758447055235,-488.94641156,0.00020547,2]
[386637736,1758447055245,-480.0,0.00020547,2]
[386637738,1758447055255,-486.57920412,0.00020547,2]
[386637741,1758447055265,-480.0,0.00020547,2]
[386637743,1758447055274,-480.0,0.00020547,2]
[386637744,1758447055283,-480.0,0.00020547,2]
[386637746,1758447055293,-480.0,0.00020547,2]
[386637748,1758447055302,-480.0,0.00020547,2]
[386637750,1758447055311,-1155.69,0.00020547,2]
[386637752,1758447055321,-10857.65,0.00020547,2]
[386637754,1758447055331,-480.0,0.00020547,2]
[386637756,1758447055340,-428.30041284,0.00020547,2]
[386637758,1758447055349,-480.0,0.00020547,2]
[386637760,1758447055360,-1690.43,0.00020547,2]
[386637762,1758447055369,-580.67855767,0.00020547,2]
[386637764,1758447055378,-678.23,0.00020547,2]
[386637766,1758447055388,-480.0,0.00020547,2]
[386637768,1758447055397,-480.0,0.00020547,2]
[386637770,1758447055407,-480.0,0.00020547,2]
[386637773,1758447055417,-480.0,0.00020547,2]
[386637775,1758447055427,-1659.82,0.00020547,2]
[386637776,1758447055436,-970.19,0.00020547,2]
[386637778,1758447055446,-480.0,0.00020547,2]
[386637780,1758447055456,-480.0,0.00020547,2]
[386637782,1758447055466,-557.14,0.00020547,2]
[386637784,1758447055476,-403.90364687,0.00020547,2]
[386637786,1758447055485,-480.0,0.00020547,2]
[386637788,1758447055495,-369.1436983,0.00020547,2]
[386637790,1758447055505,-480.0,0.00020547,2]
[386637792,1758447055514,-480.0,0.00020547,2]
[386637794,1758447055523,-480.0,0.00020547,2]
[386637796,1758447055533,-480.0,0.00020547,2]
[386637798,1758447055543,-480.0,0.00020547,2]
[386637800,1758447055552,-480.0,0.00020547,2]
[386637802,1758447055563,-480.0,0.00020547,2]
[386637804,1758447055572,-480.0,0.00020547,2]
[386637806,1758447055582,-480.0,0.00020547,2]
[386637809,1758447055593,-845.37,0.00020547,2]
[386637811,1758447055602,-847.21,0.00020547,2]
[386637813,1758447055613,-3912.14,0.00020547,2]
[386637814,1758447055622,-480.0,0.00020547,2]
[386637816,1758447055631,-283.81141877,0.00020547,2]
[386637818,1758447055640,-480.0,0.00020547,2]
[386637820,1758447055651,-730.9,0.00020547,2]
[386637822,1758447055661,-480.0,0.00020547,2]
[386637824,1758447055672,-480.0,0.00020547,2]
[386637826,1758447055681,-480.0,0.00020547,2]
[386637828,1758447055691,-675.21,0.00020547,2]
[386637830,1758447055700,-480.0,0.00020547,2]
[386637832,1758447055710,-480.0,0.00020547,2]
[386637834,1758447055720,-480.0,0.00020547,2]
[386637836,1758447055730,-480.0,0.00020547,2]
[386637838,1758447055740,-480.0,0.00020547,2]
[386637840,1758447055749,-480.0,0.00020547,2]
[386637842,1758447055759,-480.0,0.00020547,2]
[386637844,1758447055768,-480.0,0.00020547,2]
[386637846,1758447055777,-1536.62,0.00020547,2]
[386637848,1758447055787,-480.0,0.00020547,2]
[386637849,1758447055796,-1727.94,0.00020547,2]
[386637852,1758447055806,-480.0,0.00020547,2]
[386637854,1758447055816,-480.0,0.00020547,2]
[386637856,1758447055825,-850.04,0.00020547,2]
[386637857,1758447055834,-480.0,0.00020547,2]
[386637860,1758447055844,-480.0,0.00020547,2]
[386637861,1758447055854,-480.0,0.00020547,2]
[386637863,1758447055863,-566.79010753,0.00020547,2]
[386637866,1758447055873,-487.52,0.00020547,2]
[386637868,1758447055883,-500.0,0.00020548,2]
[386637870,1758447055892,-500.0,0.00020548,2]
[386637872,1758447055902,-508.72805618,0.00020568,2]
[386637874,1758447055911,-1500.0,0.00020568,2]
[386637875,1758447055921,-1500.0,0.00020568,2]
[386637878,1758447055931,-1500.0,0.00020568,2]
[386637880,1758447055940,-1549.91780046,0.00020568,2]
[386637882,1758447055950,-823.43081564,0.00020568,2]
[386637884,1758447055960,-1500.0,0.00020568,2]
[386637886,1758447055969,-1500.0,0.00020568,2]
[386637888,1758447055979,-500.0,0.00020568,2]
[386637890,1758447055988,-1505.24288065,0.00020568,2]
[386637892,1758447055998,-12366.26028563,0.00020589,2]
[386637894,1758447056010,-160.0,0.00020589,2]
[386637896,1758447056019,-10171.02454984,0.00020611,2]
[386637898,1758447056029,-227.0,0.00020619,2]
[386637899,1758447056039,-480.0,0.00020651,2]
[386637901,1758447056048,-609.15,0.00020651,2]
[386637903,1758447056057,-480.0,0.00020651,2]
[386637905,1758447056067,-480.0,0.00020694,2]
[386637907,1758447056077,-815.5,0.00020694,2]
[386637909,1758447056087,-420.0,0.00020696,2]
[386637912,1758447056097,-420.0,0.00020696,2]
[386637913,1758447056107,-300.0,0.00020696,2]
[386637915,1758447056117,-420.0,0.00020696,2]
[386637917,1758447056126,-1680.0,0.00020697,2]
[386637919,1758447056136,-1400.0,0.00020712,2]
[386637921,1758447056145,-227.0,0.00020719,2]
[386637923,1758447056155,-160.0,0.00020752,3]
[386637933,1758447056235,-1680.0,0.00020797,2]
[386637935,1758447056245,-2000.0,0.00020816,2]
[386637937,1758447056255,-2000.0,0.00020816,2]
[386637939,1758447056265,-1829.47169425,0.00020816,2]
[386637941,1758447056274,-1372.37900284,0.00020816,2]
[386637943,1758447056283,-1500.0,0.00020816,2]
[386637945,1758447056293,-2000.0,0.00020816,2]
[386637947,1758447056303,-480.0,0.00020821,2]
[386637949,1758447056313,-503.92166849,0.00020821,2]
[386637951,1758447056323,-480.0,0.00020821,2]
[386637953,1758447056332,-480.0,0.00020821,2]
[386637955,1758447056343,-336.96409079,0.00020821,2]
[386637957,1758447056352,-480.0,0.00020821,2]
[386637959,1758447056362,-480.0,0.00020821,2]
[386637961,1758447056371,-480.0,0.00020821,2]
[386637963,1758447056380,-480.0,0.00020821,2]
[386637965,1758447056390,-480.0,0.00020821,2]
[386637967,1758447056399,-480.0,0.00020821,2]
[386637969,1758447056409,-510.19804683,0.00020821,2]
[386637971,1758447056419,-480.0,0.00020821,2]
[386637973,1758447056429,-279.32169311,0.00020821,2]
[386637975,1758447056438,-480.0,0.00020821,2]
[386637977,1758447056448,-555.81649541,0.00020821,2]
[386637979,1758447056458,-455.74654058,0.00020821,2]
[386637981,1758447056467,-480.0,0.00020821,2]
[386637983,1758447056476,-480.0,0.00020821,2]
[386637985,1758447056486,-480.0,0.00020821,2]
[386637987,1758447056495,-200.0,0.00020821,2]
[386637989,1758447056505,-480.0,0.00020821,2]
[386637991,1758447056514,-480.0,0.00020821,2]
[386637993,1758447056524,-480.0,0.00020821,2]
[386637995,1758447056533,-480.0,0.00020821,2]
[386637997,1758447056542,-1155.69,0.00020821,2]
[386637999,1758447056551,-10857.65,0.00020821,2]
[386638002,1758447056561,-480.0,0.00020821,2]
[386638003,1758447056570,-480.0,0.00020821,2]
[386638005,1758447056579,-1690.43,0.00020821,2]
[386638007,1758447056588,-678.23,0.00020821,2]
[386638009,1758447056598,-629.03928972,0.00020821,2]
[386638012,1758447056608,-480.0,0.00020821,2]
[386638014,1758447056617,-480.0,0.00020821,2]
[386638015,1758447056626,-480.0,0.00020821,2]
[386638017,1758447056635,-1659.82,0.00020821,2]
[386638019,1758447056645,-970.19,0.00020821,2]
[386638021,1758447056655,-480.0,0.00020821,2]
[386638023,1758447056665,-480.0,0.00020821,2]
[386638025,1758447056676,-557.14,0.00020821,2]
[386638027,1758447056686,-515.78024332,0.00020821,2]
[386638029,1758447056695,-480.0,0.00020821,2]
[386638031,1758447056706,-173.78,0.00020821,2]
[386638033,1758447056715,-480.0,0.00020821,2]
[386638035,1758447056725,-480.0,0.00020821,2]
[386638037,1758447056734,-480.0,0.00020821,2]
[386638039,1758447056744,-153.14192329,0.00020821,2]
[386638041,1758447056753,-480.0,0.00020821,2]
[386638043,1758447056762,-480.0,0.00020821,2]
[386638045,1758447056771,-480.0,0.00020821,2]
[386638047,1758447056781,-845.37,0.00020821,2]
[386638049,1758447056790,-847.21,0.00020821,2]
[386638051,1758447056800,-3912.14,0.00020821,2]
[386638053,1758447056809,-480.0,0.00020821,2]
[386638055,1758447056818,-480.0,0.00020821,2]
[386638057,1758447056828,-730.9,0.00020821,2]
[386638059,1758447056837,-480.0,0.00020821,2]
[386638061,1758447056847,-480.0,0.00020821,2]
[386638063,1758447056856,-675.21,0.00020821,2]
[386638065,1758447056865,-538.01893556,0.00020821,2]
[386638067,1758447056875,-480.0,0.00020821,2]
[386638069,1758447056884,-480.0,0.00020821,2]
[386638071,1758447056895,-480.0,0.00020821,2]
[386638073,1758447056904,-226.89351794,0.00020821,2]
[386638075,1758447056913,-501.39005476,0.00020821,2]
[386638077,1758447056923,-480.0,0.00020821,2]
[386638079,1758447056933,-480.0,0.00020821,2]
[386638081,1758447056943,-1536.62,0.00020821,2]
[386638083,1758447056952,-480.0,0.00020821,2]
[386638085,1758447056962,-1727.94,0.00020821,2]
[386638086,1758447056971,-603.71,0.00020821,2]
[386638087,1758447056981,-480.0,0.00020821,2]
[386638088,1758447056990,-850.04,0.00020821,2]
[386638089,1758447057003,-480.0,0.00020821,2]
[386638090,1758447057013,-480.0,0.00020821,2]
[386638091,1758447057023,-480.0,0.00020821,2]
[386638092,1758447057032,-487.52,0.00020821,2]
[386638093,1758447057043,-500.0,0.00020822,2]
[386638094,1758447057053,-500.0,0.00020822,2]
[386638095,1758447057062,-255.049498,0.00020822,2]
[386638096,1758447057072,-255.049498,0.00020822,2]
[386638097,1758447057081,-255.049498,0.00020822,2]
[386638098,1758447057091,-255.049498,0.00020822,2]
[386638099,1758447057101,-255.049498,0.00020822,2]
[386638100,1758447057110,-255.049498,0.00020822,2]
[386638101,1758447057119,-255.049498,0.00020822,2]
[386638102,1758447057129,-255.049498,0.00020822,2]
[386638103,1758447057139,-255.049498,0.00020822,2]
[386638104,1758447057148,-255.049498,0.00020822,2]
[386638105,1758447057158,-255.049498,0.00020822,2]
[386638106,1758447057167,-255.049498,0.00020822,2]
[386638107,1758447057179,-255.049498,0.00020822,2]
[386638108,1758447057188,-255.049498,0.00020822,2]
[386638109,1758447057197,-255.049498,0.00020822,2]
[386638110,1758447057207,-255.049498,0.00020822,2]
[386638111,1758447057217,-255.049498,0.00020822,2]
[386638112,1758447057226,-255.049498,0.00020822,2]
[386638113,1758447057235,-255.049498,0.00020822,2]
[386638114,1758447057245,-255.049507,0.00020822,2]
[386638115,1758447057255,-1000.0,0.00020825,2]
[386638116,1758447057265,-501.08301147,0.00020825,2]
[386638117,1758447057274,-1000.0,0.00020825,2]
[386638119,1758447057284,-1000.0,0.00020825,2]
[386638121,1758447057293,-1000.0,0.00020825,2]
[386638123,1758447057302,-506.66059614,0.00020825,2]
[386638124,1758447057312,-1000.0,0.00020825,2]
[386638126,1758447057321,-508.0887507,0.00020825,2]
[386638128,1758447057331,-1000.0,0.00020825,2]
[386638130,1758447057340,-168.0,0.00020843,2]
[386638132,1758447057350,-1123.41079606,0.00020861,2]
[386638134,1758447057359,-1000.0,0.00020861,2]
[386638136,1758447057368,-500.0,0.00020861,2]
[386638138,1758447057378,-1000.0,0.00020861,2]
[386638140,1758447057387,-252.41532655,0.000209,2]
[386638142,1758447057397,-510.38420329,0.00020925,2]
[386638144,1758447057407,-609.15,0.00020925,2]
[386638146,1758447057416,-480.0,0.00020925,2]
[386638148,1758447057425,-227.0,0.00020926,2]
[386638150,1758447057435,-168.0,0.00020944,2]
[386638152,1758447057444,-480.0,0.00020968,2]
[386638154,1758447057456,-815.5,0.00020968,2]
[386638156,1758447057465,-12492.53205295,0.00020972,2]
[386638158,1758447057475,-168.0,0.00020979,2]
[386638160,1758447057484,-218.07019849,0.00021,2]
[386638162,1758447057493,-150.0,0.00021,2]
[386638171,1758447057561,-27294.76350694,0.00021,3]
[386638173,1758447057578,-417.15472785,0.00021,3]
[386638175,1758447057588,-160.0,0.00021,3]
[386638177,1758447057598,-3105.0,0.0002105,5]
[386638179,1758447057607,-1000.0,0.00021088,2]
[386638181,1758447057616,-1000.0,0.00021088,2]
[386638183,1758447057626,-156.002483,0.00021094,7]
[386638185,1758447057635,-252.60071238,0.00021095,2]
[386638187,1758447057645,-494.57325951,0.00021095,2]
[386638189,1758447057654,-480.0,0.00021095,2]
[386638191,1758447057663,-480.0,0.00021095,2]
[386638193,1758447057672,-480.0,0.00021095,2]
[386638195,1758447057682,-480.0,0.00021095,2]
[386638197,1758447057691,-480.0,0.00021095,2]
[386638199,1758447057700,-480.0,0.00021095,2]
[386638201,1758447057711,-480.0,0.00021095,2]
[386638203,1758447057721,-496.06124471,0.00021095,2]
[386638205,1758447057730,-480.0,0.00021095,2]
[386638207,1758447057740,-480.0,0.00021095,2]
[386638208,1758447057750,-480.0,0.00021095,2]
[386638211,1758447057760,-480.0,0.00021095,2]
[386638213,1758447057771,-480.0,0.00021095,2]
[386638215,1758447057780,-480.0,0.00021095,2]